{"text_format":"2","workbook":"xlsx","n_sheets":2,"sheets":["энргоэфф","энргоэфф (2)"],"not_rendered":{"charts":0,"images":0,"macros":0,"external_links":0,"defined_names":6,"comments":0,"pivot_tables":0},"unopened":[],"bounds":{"document_bytes":16777216,"sheet_cells":100000,"run_cost":"one","rows_first":2000,"rows_last":500,"rows_between":2000,"halvings":0,"cell_chars":16384,"cell_head_chars":4096},"cells_cut":0,"cells_raw":0,"read":"whole","date_system":"1900"}

{"sheet":"энргоэфф","index":0,"n_rows":34,"n_cols":2,"rows_kept":34,"cut":false,"hidden":false,"merged":[]}
[]
["Расход тепловой энергии на отопление и вентиляцию здания за отопительный период  , кВт·ч/год,",100]
[]
["расчётный нормативный средний суточный(СП 30.13330, Таблица А.2).\nрасход горячей воды на человека",70]
["температура горячей воды",60]
["температура холодной воды в летний период",15]
["температура холодной воды в отопительный период",5]
["продолжительность отопительного периода",239]
["продолжительность перерыва в горячем водоснабжении",10]
["продолжительность использования ГВС в летний период, сут",{"$f":"365-B8-B9","v":116}]
["коэффициент, учитывающий снижение горячего\nводопотребления в летний период для МКД",0.9]
["то же для остальных зданий",1]
["Число жителей",150]
["средний расход горячей воды для квартир МКД за сутки, м3/сут",{"$f":"B4*B13*0.001*(B8+B11*B10)/365","v":9.8786301369863008}]
[]
["расчётный нормативный среднесуточный расход горячей воды на\nчеловека, л⁄(сут ∙ чел) в нежилой части",4.5]
["Число служащих",10]
["среднесуточный расход горячей воды нежилой части МКД, м3/сут",{"$f":"B16*B17*0.001*(B8+B12*B10)/365","v":4.3767123287671232E-2}]
[]
["средний расход горячей воды для квартир и полезной площади нежилых помещений МКД, м3/сут",{"$f":"B18+B14","v":9.9223972602739714}]
["Коэффициент 𝑘тр, учитывающий тепловые потери в трубопроводе",0.3]
["К1 установка первой ступени приготовления горячей воды за счет утилизации тепла вентиляционных выбросов",0.85]
["К2 установка частотного регулирования приводов насосов в циркуляционном трубопроводе системы горячего водоснабжения",0.8]
["К3 установка автоматизированного индивидуального теплового пункта",0.8]
["К4 устройство гибридной системы ГВС с использованием солнечных коллекторов воды",0.75]
["К5 установка первой ступени приготовления горячей воды с помощью тепловых насосов",0.7]
["К6 устройство гибридной системы ГВС с аккумулированием тепла и тепловыми насосами, использующими теплоту грунта и тепловентиляционных выбросов",0.4]
["коэффициент эффективности использования ГВС",{"$f":"B23*B24","v":0.64000000000000012}]
["Среднесуточный расход горячей воды для квартир МКД за сутки",{"$f":"1.17*B20*(B5-B7)*((365-B9)*B21+B8+B11*B10*(B5-B6)/(B5-B7))*B28","v":176092.13326882196}]
[]
["Площадь",5000]
["Удельный годовой расход тепловой энергии на горячее водоснабжение МКД, кВт∙ч/м3",{"$f":"B29/B31","v":35.218426653764389}]
["Удельный годовой расход электрической энергии на общедомовые нужды МКД, оборудованных лифтом",10]
["Суммарный удельный годовой расхода энергетических ресурсов МКД, кВт∙ч/м2:",{"$f":"B2+B32+B33","v":145.2184266537644}]

{"sheet":"энргоэфф (2)","index":1,"n_rows":22,"n_cols":8,"rows_kept":22,"cut":false,"hidden":false,"merged":[[0,0,1,0],[0,1,1,1],[0,2,0,7],[2,0,8,0],[9,0,15,0]]}
["Наименование показателя ","°С сут. отопит. периода ","Этажность многоквартирного дома "]
[null,null,"2 эт. ","4 эт. ","6 эт ","8 эт ","10 эт ","  =>12 эт. "]
["Расход тепловой энергии на отопление, вентиляцию, горячее водоснабжение и электроэнергии на общедомовые нужды <*> ",2000,215,206,203,201,199,198]
[null,3000,228,216,212,208,205,203]
[null,4000,256,239,234,229,225,223]
[null,5000,284,263,256,251,245,242]
[null,6000,312,287,278,272,265,262]
[null,8000,370,337,326,317,308,304]
[null,10000,426,384,370,359,348,342]
["в том числе тепловой энергии на отопление и вентиляцию",2000,67,56,44,42,40,39]
[null,3000,100,83,67,63,60,58]
[null,4000,133,111,89,84,80,78]
[null,5000,167,139,111,106,100,97]
[null,6000,200,167,133,127,120,117]
[null,8000,253,211,169,160,152,148]
[null,10000,317,264,211,201,190,185]
[]
["ГСОП",5100,{"$f":"INDEX(Diar,MATCH(Val,Diap),1)+(Val-INDEX(Diap,MATCH(Val,Diap),1))/(INDEX(Diap,MATCH(Val,Diap)+1,1)-INDEX(Diap,MATCH(Val,Diap),1))*(INDEX(Diar,MATCH(Val,Diap)+1,1)-INDEX(Diar,MATCH(Val,Diap),1))","v":286.8},{"$f":"INDEX(Diar,MATCH(Val,Diap),2)+(Val-INDEX(Diap,MATCH(Val,Diap),1))/(INDEX(Diap,MATCH(Val,Diap)+1,1)-INDEX(Diap,MATCH(Val,Diap),1))*(INDEX(Diar,MATCH(Val,Diap)+1,2)-INDEX(Diar,MATCH(Val,Diap),2))","v":265.39999999999998},{"$f":"INDEX(Diar,MATCH(Val,Diap),3)+(Val-INDEX(Diap,MATCH(Val,Diap),1))/(INDEX(Diap,MATCH(Val,Diap)+1,1)-INDEX(Diap,MATCH(Val,Diap),1))*(INDEX(Diar,MATCH(Val,Diap)+1,3)-INDEX(Diar,MATCH(Val,Diap),3))","v":258.2},{"$f":"INDEX(Diar,MATCH(Val,Diap),4)+(Val-INDEX(Diap,MATCH(Val,Diap),1))/(INDEX(Diap,MATCH(Val,Diap)+1,1)-INDEX(Diap,MATCH(Val,Diap),1))*(INDEX(Diar,MATCH(Val,Diap)+1,4)-INDEX(Diar,MATCH(Val,Diap),4))","v":253.1},{"$f":"INDEX(Diar,MATCH(Val,Diap),5)+(Val-INDEX(Diap,MATCH(Val,Diap),1))/(INDEX(Diap,MATCH(Val,Diap)+1,1)-INDEX(Diap,MATCH(Val,Diap),1))*(INDEX(Diar,MATCH(Val,Diap)+1,5)-INDEX(Diar,MATCH(Val,Diap),5))","v":247},{"$f":"INDEX(Diar,MATCH(Val,Diap),6)+(Val-INDEX(Diap,MATCH(Val,Diap),1))/(INDEX(Diap,MATCH(Val,Diap)+1,1)-INDEX(Diap,MATCH(Val,Diap),1))*(INDEX(Diar,MATCH(Val,Diap)+1,6)-INDEX(Diar,MATCH(Val,Diap),6))","v":244}]
[null,{"$f":"Val","v":5100},{"$f":"INDEX(Diarr,MATCH(Val,Diapp),1)+(Val-INDEX(Diapp,MATCH(Val,Diapp),1))/(INDEX(Diapp,MATCH(Val,Diapp)+1,1)-INDEX(Diapp,MATCH(Val,Diapp),1))*(INDEX(Diarr,MATCH(Val,Diapp)+1,1)-INDEX(Diarr,MATCH(Val,Diapp),1))","v":170.3},{"$f":"INDEX(Diarr,MATCH(Val,Diapp),2)+(Val-INDEX(Diapp,MATCH(Val,Diapp),1))/(INDEX(Diapp,MATCH(Val,Diapp)+1,1)-INDEX(Diapp,MATCH(Val,Diapp),1))*(INDEX(Diarr,MATCH(Val,Diapp)+1,2)-INDEX(Diarr,MATCH(Val,Diapp),2))","v":141.80000000000001},{"$f":"INDEX(Diarr,MATCH(Val,Diapp),3)+(Val-INDEX(Diapp,MATCH(Val,Diapp),1))/(INDEX(Diapp,MATCH(Val,Diapp)+1,1)-INDEX(Diapp,MATCH(Val,Diapp),1))*(INDEX(Diarr,MATCH(Val,Diapp)+1,3)-INDEX(Diarr,MATCH(Val,Diapp),3))","v":113.2},{"$f":"INDEX(Diarr,MATCH(Val,Diapp),4)+(Val-INDEX(Diapp,MATCH(Val,Diapp),1))/(INDEX(Diapp,MATCH(Val,Diapp)+1,1)-INDEX(Diapp,MATCH(Val,Diapp),1))*(INDEX(Diarr,MATCH(Val,Diapp)+1,4)-INDEX(Diarr,MATCH(Val,Diapp),4))","v":108.1},{"$f":"INDEX(Diarr,MATCH(Val,Diapp),5)+(Val-INDEX(Diapp,MATCH(Val,Diapp),1))/(INDEX(Diapp,MATCH(Val,Diapp)+1,1)-INDEX(Diapp,MATCH(Val,Diapp),1))*(INDEX(Diarr,MATCH(Val,Diapp)+1,5)-INDEX(Diarr,MATCH(Val,Diapp),5))","v":102},{"$f":"INDEX(Diarr,MATCH(Val,Diapp),6)+(Val-INDEX(Diapp,MATCH(Val,Diapp),1))/(INDEX(Diapp,MATCH(Val,Diapp)+1,1)-INDEX(Diapp,MATCH(Val,Diapp),1))*(INDEX(Diarr,MATCH(Val,Diapp)+1,6)-INDEX(Diarr,MATCH(Val,Diapp),6))","v":99}]
[null,"Нормативный",null,"Расчетный",null,"Отклонение",null,"Класс"]
["Выбираем нужный",{"$f":"F18","v":253.1},null,{"$f":"энргоэфф!B34","v":145.2184266537644},null,{"$f":"(B21-D21)/B21*100","v":42.62409061486985},null,{"$f":"_xlfn.IFS(F21>60,\"А++ Высочайший\",F21>50,\"А+ Высочайший\",F21>40,\"А Очень высокий\",F21>30,\"B Высокий\",F21>15,\"C Повышенный\",F21>0,\"D Нормальный\",F21>-25,\"E Пониженный\",F21>-50,\"F Низкий\",F21<-50,\"G Очень низкий\")","v":"А Очень высокий"}]
[null,{"$f":"F19","v":108.1},null,{"$f":"энргоэфф!B2","v":100},null,{"$f":"(B22-D22)/B22*100","v":7.493061979648469}]